[Event "*** SCC Grand Prix: Titled Tuesday Blitz"]
[Site "Chess.com"]
[Date "2020.06.09"]
[Round "3"]
[White "MikaelyanArman"]
[Black "CrushingKings"]
[Result "0-1"]
[WhiteElo "2762"]
[BlackElo "2522"]
[TimeControl "180+1"]
[EndTime "9:30:23 PDT"]
[Termination "CrushingKings won on time"]

1. Nf3 {[%clk 0:03:00.9]} 1... g6 {[%clk 0:02:56.1]} 2. g3 {[%clk 0:02:59.3]}
2... Bg7 {[%clk 0:02:56.6]} 3. d4 {[%clk 0:02:59.5]} 3... Nf6 {[%clk 0:02:56.1]}
4. Bg2 {[%clk 0:02:59.7]} 4... d6 {[%clk 0:02:56.7]} 5. O-O {[%clk 0:03:00]}
5... O-O {[%clk 0:02:57.4]} 6. Nc3 {[%clk 0:02:57.2]} 6... Nfd7 {[%clk
0:02:54.5]} 7. e4 {[%clk 0:02:56.9]} 7... c5 {[%clk 0:02:55.1]} 8. d5 {[%clk
0:02:54.3]} 8... Na6 {[%clk 0:02:46.4]} 9. Bf4 {[%clk 0:02:53.5]} 9... Nc7
{[%clk 0:02:45.2]} 10. Re1 {[%clk 0:02:52.6]} 10... Ne5 {[%clk 0:02:44.2]} 11.
Nxe5 {[%clk 0:02:50.5]} 11... dxe5 {[%clk 0:02:45.1]} 12. Be3 {[%clk 0:02:49.9]}
12... b6 {[%clk 0:02:45.4]} 13. Qd2 {[%clk 0:02:43.6]} 13... Ne8 {[%clk
0:02:45.3]} 14. Bh6 {[%clk 0:02:31.3]} 14... Nd6 {[%clk 0:02:44.8]} 15. Bxg7
{[%clk 0:02:29.1]} 15... Kxg7 {[%clk 0:02:45.7]} 16. f4 {[%clk 0:02:29.5]} 16...
f6 {[%clk 0:02:41.5]} 17. fxe5 {[%clk 0:02:17.6]} 17... fxe5 {[%clk 0:02:42.4]}
18. Rf1 {[%clk 0:02:18]} 18... Rf6 {[%clk 0:02:33.6]} 19. Qg5 {[%clk 0:02:05.7]}
19... Nf7 {[%clk 0:02:33.1]} 20. Qe3 {[%clk 0:02:05.7]} 20... Ba6 {[%clk
0:02:32]} 21. Rxf6 {[%clk 0:02:02.2]} 21... exf6 {[%clk 0:02:31.7]} 22. Bf1
{[%clk 0:01:57.1]} 22... Bc8 {[%clk 0:02:25.7]} 23. Be2 {[%clk 0:01:18.4]} 23...
Nd6 {[%clk 0:01:37.4]} 24. g4 {[%clk 0:01:18.2]} 24... g5 {[%clk 0:01:29.1]} 25.
Rf1 {[%clk 0:01:14]} 25... Bd7 {[%clk 0:01:27.2]} 26. Bf3 {[%clk 0:01:02.6]}
26... Qe7 {[%clk 0:01:22.9]} 27. Ne2 {[%clk 0:01:02]} 27... Bb5 {[%clk
0:01:16.9]} 28. b3 {[%clk 0:00:57.1]} 28... Bxe2 {[%clk 0:01:17]} 29. Bxe2
{[%clk 0:00:50.7]} 29... Rd8 {[%clk 0:01:09]} 30. a4 {[%clk 0:00:50.3]} 30... a5
{[%clk 0:01:07.4]} 31. Bd3 {[%clk 0:00:41.2]} 31... Nf7 {[%clk 0:01:03.5]} 32.
h3 {[%clk 0:00:37.8]} 32... Nh8 {[%clk 0:01:03.5]} 33. h4 {[%clk 0:00:30.6]}
33... gxh4 {[%clk 0:00:43.2]} 34. Rf5 {[%clk 0:00:22.3]} 34... h6 {[%clk
0:00:40.4]} 35. Rh5 {[%clk 0:00:21]} 35... Nf7 {[%clk 0:00:40.1]} 36. Rxh4
{[%clk 0:00:17.1]} 36... Ng5 {[%clk 0:00:40.2]} 37. Kf2 {[%clk 0:00:15.4]} 37...
Rg8 {[%clk 0:00:37.4]} 38. Ke1 {[%clk 0:00:15.1]} 38... Qd6 {[%clk 0:00:32.5]}
39. Kd1 {[%clk 0:00:14.8]} 39... Rc8 {[%clk 0:00:29.6]} 40. Bc4 {[%clk 0:00:14]}
40... Rh8 {[%clk 0:00:26.5]} 41. Kc1 {[%clk 0:00:14.2]} 41... Qd7 {[%clk
0:00:25.6]} 42. Kb2 {[%clk 0:00:13.8]} 42... Rd8 {[%clk 0:00:24.8]} 43. Qe2
{[%clk 0:00:12.4]} 43... Qf7 {[%clk 0:00:24.3]} 44. Rh1 {[%clk 0:00:12.2]} 44...
Qg6 {[%clk 0:00:24.5]} 45. Bd3 {[%clk 0:00:11.3]} 45... Kf8 {[%clk 0:00:22.2]}
46. Rf1 {[%clk 0:00:11.2]} 46... Ke7 {[%clk 0:00:22.2]} 47. Qe3 {[%clk
0:00:08.3]} 47... Nf7 {[%clk 0:00:20.3]} 48. Qh3 {[%clk 0:00:03.8]} 48... Rg8
{[%clk 0:00:19.7]} 49. Qf3 {[%clk 0:00:02.7]} 49... Nd6 {[%clk 0:00:18.1]} 50.
Rg1 {[%clk 0:00:03.1]} 50... Qg5 {[%clk 0:00:17.8]} 51. Rh1 {[%clk 0:00:02.3]}
51... Rg6 {[%clk 0:00:17.9]} 52. Rg1 {[%clk 0:00:01.8]} 52... Qd2 {[%clk
0:00:17.6]} 53. Rg2 {[%clk 0:00:01.7]} 53... Qg5 {[%clk 0:00:17.5]} 54. Qf1
{[%clk 0:00:01.7]} 54... h5 {[%clk 0:00:15.6]} 55. Rh2 {[%clk 0:00:02.1]} 55...
hxg4 {[%clk 0:00:15.8]} 56. Rh7+ {[%clk 0:00:01.7]} 56... Rg7 {[%clk 0:00:16.2]}
57. Rh8 {[%clk 0:00:01.9]} 57... g3 {[%clk 0:00:15.9]} 58. Qh3 {[%clk
0:00:01.7]} 58... Qg4 {[%clk 0:00:14.6]} 59. Qg2 {[%clk 0:00:01.5]} 59... Nf7
{[%clk 0:00:11.9]} 60. Rb8 {[%clk 0:00:01.5]} 60... Nd6 {[%clk 0:00:05.3]} 61.
Rxb6 {[%clk 0:00:01.3]} 61... Qh4 {[%clk 0:00:05.8]} 62. Qf3 {[%clk 0:00:01.4]}
62... Qf4 {[%clk 0:00:05.8]} 63. Qg2 {[%clk 0:00:01.3]} 63... Qf2 {[%clk
0:00:06]} 64. Qh3 {[%clk 0:00:01.6]} 64... f5 {[%clk 0:00:03.1]} 65. Qh4+ {[%clk
0:00:01.9]} 65... Kf7 {[%clk 0:00:02.8]} 66. Rxd6 {[%clk 0:00:01.6]} 66... Qd4+
{[%clk 0:00:03.3]} 0-1

[Event "*** SCC Grand Prix: Titled Tuesday Blitz"]
[Site "Chess.com"]
[Date "2020.06.09"]
[Round "3"]
[White "mishanick"]
[Black "anesar92"]
[Result "1-0"]
[WhiteElo "2949"]
[BlackElo "2683"]
[TimeControl "180+1"]
[EndTime "9:30:24 PDT"]
[Termination "mishanick won on time"]

1. d4 {[%clk 0:02:55.6]} 1... Nf6 {[%clk 0:02:59.5]} 2. c4 {[%clk 0:02:55.7]}
2... e6 {[%clk 0:02:59.8]} 3. Nf3 {[%clk 0:02:54.6]} 3... Bb4+ {[%clk
0:02:59.7]} 4. Nbd2 {[%clk 0:02:54.7]} 4... O-O {[%clk 0:02:59.2]} 5. a3 {[%clk
0:02:54.8]} 5... Be7 {[%clk 0:02:59.8]} 6. e4 {[%clk 0:02:54.4]} 6... d6 {[%clk
0:03:00.2]} 7. Be2 {[%clk 0:02:52.4]} 7... Nfd7 {[%clk 0:02:59.9]} 8. Qc2 {[%clk
0:02:50.8]} 8... e5 {[%clk 0:02:59.8]} 9. d5 {[%clk 0:02:48.7]} 9... a5 {[%clk
0:03:00]} 10. Nb1 {[%clk 0:02:45.7]} 10... Nc5 {[%clk 0:02:59.3]} 11. Nc3 {[%clk
0:02:46.3]} 11... f5 {[%clk 0:02:52.9]} 12. Be3 {[%clk 0:02:45.5]} 12... fxe4
{[%clk 0:02:46.2]} 13. Nd2 {[%clk 0:02:44.9]} 13... Nba6 {[%clk 0:02:32.2]} 14.
Ndxe4 {[%clk 0:02:40.2]} 14... Bf5 {[%clk 0:02:31.8]} 15. O-O {[%clk 0:02:34.3]}
15... Bg5 {[%clk 0:02:06.9]} 16. Bxc5 {[%clk 0:01:47.5]} 16... Nxc5 {[%clk
0:02:03.7]} 17. b4 {[%clk 0:01:47.4]} 17... Nxe4 {[%clk 0:01:45.2]} 18. Nxe4
{[%clk 0:01:46.9]} 18... Bxe4 {[%clk 0:01:44.8]} 19. Qxe4 {[%clk 0:01:46.4]}
19... Qf6 {[%clk 0:01:44.7]} 20. Bd3 {[%clk 0:01:41.4]} 20... g6 {[%clk
0:01:44.5]} 21. f3 {[%clk 0:01:14.2]} 21... Qf4 {[%clk 0:01:41]} 22. Rfe1 {[%clk
0:00:55]} 22... Qxe4 {[%clk 0:01:32.6]} 23. Bxe4 {[%clk 0:00:51.8]} 23... axb4
{[%clk 0:01:32.5]} 24. axb4 {[%clk 0:00:51.6]} 24... Bd2 {[%clk 0:01:33]} 25.
Rxa8 {[%clk 0:00:48.6]} 25... Rxa8 {[%clk 0:01:33.9]} 26. Rb1 {[%clk 0:00:48.8]}
26... Be3+ {[%clk 0:01:34]} 27. Kh1 {[%clk 0:00:47.8]} 27... Bd4 {[%clk
0:01:34]} 28. c5 {[%clk 0:00:43.8]} 28... Ra1 {[%clk 0:01:32]} 29. Rxa1 {[%clk
0:00:43.5]} 29... Bxa1 {[%clk 0:01:31.1]} 30. c6 {[%clk 0:00:44.1]} 30... b6
{[%clk 0:01:22.3]} 31. h4 {[%clk 0:00:32.8]} 31... Bc3 {[%clk 0:01:21.6]} 32. b5
{[%clk 0:00:32.8]} 32... Be1 {[%clk 0:01:19.2]} 33. h5 {[%clk 0:00:31.2]} 33...
Kg7 {[%clk 0:01:18.5]} 34. Kh2 {[%clk 0:00:32.1]} 34... gxh5 {[%clk 0:01:16.3]}
35. Kh3 {[%clk 0:00:32.2]} 35... h6 {[%clk 0:01:12.9]} 36. Bf5 {[%clk
0:00:18.2]} 36... Kf6 {[%clk 0:01:10.3]} 37. Bd7 {[%clk 0:00:18.6]} 37... Kg5
{[%clk 0:01:07.9]} 38. Be8 {[%clk 0:00:16.7]} 38... h4 {[%clk 0:01:03.9]} 39.
Bf7 {[%clk 0:00:15.1]} 39... Bg3 {[%clk 0:01:03.7]} 40. Bg8 {[%clk 0:00:14.9]}
40... Kf4 {[%clk 0:00:59.3]} 41. Bh7 {[%clk 0:00:15.4]} 41... Ke3 {[%clk
0:00:55]} 42. Kg4 {[%clk 0:00:15.1]} 42... Kf2 {[%clk 0:00:52]} 43. Kh3 {[%clk
0:00:14.6]} 43... Ke3 {[%clk 0:00:48.7]} 44. Kg4 {[%clk 0:00:14.5]} 44... Kf2
{[%clk 0:00:31.9]} 45. Be4 {[%clk 0:00:11.8]} 45... Bf4 {[%clk 0:00:25.6]} 46.
Kxh4 {[%clk 0:00:08.1]} 46... Kxg2 {[%clk 0:00:25.7]} 47. Kh5 {[%clk 0:00:08.7]}
47... Kf2 {[%clk 0:00:25.6]} 48. Kg6 {[%clk 0:00:09.1]} 48... Ke3 {[%clk
0:00:25.7]} 49. Kf7 {[%clk 0:00:09.2]} 49... h5 {[%clk 0:00:24.7]} 50. Ke8
{[%clk 0:00:09]} 50... h4 {[%clk 0:00:24.9]} 51. Bf5 {[%clk 0:00:09.6]} 51...
Kxf3 {[%clk 0:00:25.2]} 52. Kd7 {[%clk 0:00:10.2]} 52... e4 {[%clk 0:00:24.7]}
53. Kxc7 {[%clk 0:00:10.7]} 53... e3 {[%clk 0:00:25.1]} 54. Bd3 {[%clk
0:00:08.1]} 54... h3 {[%clk 0:00:19.9]} 55. Kxb6 {[%clk 0:00:08.3]} 55... h2
{[%clk 0:00:19.5]} 56. c7 {[%clk 0:00:08.9]} 56... h1=Q {[%clk 0:00:19.2]} 57.
c8=Q {[%clk 0:00:09.3]} 57... e2 {[%clk 0:00:14.3]} 58. Bxe2+ {[%clk 0:00:08.4]}
58... Kxe2 {[%clk 0:00:15.2]} 59. Qc4+ {[%clk 0:00:08.9]} 59... Ke3 {[%clk
0:00:14.1]} 60. Ka6 {[%clk 0:00:06.8]} 60... Qa1+ {[%clk 0:00:12.4]} 61. Kb7
{[%clk 0:00:06.5]} 61... Qg7+ {[%clk 0:00:12.2]} 62. Ka6 {[%clk 0:00:06.6]}
62... Qa1+ {[%clk 0:00:10.2]} 63. Kb7 {[%clk 0:00:06.6]} 63... Qg7+ {[%clk
0:00:07.2]} 64. Kc6 {[%clk 0:00:07]} 64... Be5 {[%clk 0:00:04.2]} 65. b6 {[%clk
0:00:06.7]} 65... Qe7 {[%clk 0:00:03.7]} 66. b7 {[%clk 0:00:06.4]} 66... Qd8
{[%clk 0:00:03.5]} 67. Qb3+ {[%clk 0:00:06.3]} 67... Ke4 {[%clk 0:00:01.9]} 68.
b8=Q {[%clk 0:00:06.9]} 1-0

[Event "*** SCC Grand Prix: Titled Tuesday Blitz"]
[Site "Chess.com"]
[Date "2020.06.09"]
[Round "3"]
[White "UCantHandleDenker"]
[Black "Infernal_XaM"]
[Result "1-0"]
[WhiteElo "2527"]
[BlackElo "2762"]
[TimeControl "180+1"]
[EndTime "9:30:31 PDT"]
[Termination "UCantHandleDenker won by resignation"]

1. Nf3 {[%clk 0:02:58.4]} 1... c5 {[%clk 0:02:57.9]} 2. g3 {[%clk 0:02:58.6]}
2... Nc6 {[%clk 0:02:57.9]} 3. Bg2 {[%clk 0:02:59]} 3... e5 {[%clk 0:02:57.6]}
4. d3 {[%clk 0:02:58.6]} 4... d5 {[%clk 0:02:57.2]} 5. O-O {[%clk 0:02:58]} 5...
f6 {[%clk 0:02:56.7]} 6. c4 {[%clk 0:02:57]} 6... d4 {[%clk 0:02:56.2]} 7. e3
{[%clk 0:02:56.7]} 7... Bd6 {[%clk 0:02:55]} 8. exd4 {[%clk 0:02:56.3]} 8...
cxd4 {[%clk 0:02:55.5]} 9. a3 {[%clk 0:02:55.8]} 9... a5 {[%clk 0:02:54.3]} 10.
Re1 {[%clk 0:02:54.4]} 10... Nge7 {[%clk 0:02:53.8]} 11. Nbd2 {[%clk 0:02:53.4]}
11... O-O {[%clk 0:02:48.1]} 12. Ne4 {[%clk 0:02:53]} 12... b6 {[%clk
0:02:47.5]} 13. Nxd6 {[%clk 0:02:49]} 13... Qxd6 {[%clk 0:02:47.2]} 14. Rb1
{[%clk 0:02:45.1]} 14... Bb7 {[%clk 0:02:23.5]} 15. b4 {[%clk 0:02:10.6]} 15...
axb4 {[%clk 0:02:03.7]} 16. axb4 {[%clk 0:02:10]} 16... Kh8 {[%clk 0:02:04.3]}
17. b5 {[%clk 0:02:08.2]} 17... Nb8 {[%clk 0:01:57.4]} 18. Bd2 {[%clk
0:02:07.4]} 18... Nd7 {[%clk 0:01:55]} 19. Bb4 {[%clk 0:01:48.8]} 19... Nc5
{[%clk 0:01:54.6]} 20. Nd2 {[%clk 0:01:48.9]} 20... Bxg2 {[%clk 0:01:53.4]} 21.
Kxg2 {[%clk 0:01:49.4]} 21... f5 {[%clk 0:01:51.8]} 22. Bxc5 {[%clk 0:01:24.1]}
22... bxc5 {[%clk 0:01:51.3]} 23. Nf3 {[%clk 0:01:10.2]} 23... Ng6 {[%clk
0:01:49.5]} 24. h4 {[%clk 0:01:09.8]} 24... Rfe8 {[%clk 0:01:39.9]} 25. h5
{[%clk 0:01:08.4]} 25... Nf8 {[%clk 0:01:40]} 26. b6 {[%clk 0:01:02.4]} 26...
Rab8 {[%clk 0:01:37.2]} 27. b7 {[%clk 0:01:01.6]} 27... Qc6 {[%clk 0:01:27.6]}
28. Kg1 {[%clk 0:00:53.4]} 28... e4 {[%clk 0:01:22.9]} 29. Ng5 {[%clk
0:00:47.9]} 29... h6 {[%clk 0:01:19.1]} 30. Nh3 {[%clk 0:00:37.3]} 30... Rxb7
{[%clk 0:01:17.9]} 31. dxe4 {[%clk 0:00:36.3]} 31... fxe4 {[%clk 0:01:15.3]} 32.
Nf4 {[%clk 0:00:34]} 32... Rxb1 {[%clk 0:01:08.6]} 33. Qxb1 {[%clk 0:00:33.8]}
33... Nd7 {[%clk 0:01:09.1]} 34. Ng6+ {[%clk 0:00:27.1]} 34... Kh7 {[%clk
0:01:07.6]} 35. Qd1 {[%clk 0:00:28]} 35... Nf6 {[%clk 0:01:04.5]} 36. Qc1 {[%clk
0:00:25.5]} 36... Nxh5 {[%clk 0:00:56.7]} 37. Nh4 {[%clk 0:00:23.4]} 37... Nf6
{[%clk 0:00:56.3]} 38. Qf4 {[%clk 0:00:22.5]} 38... Qe6 {[%clk 0:00:56]} 39. Qc7
{[%clk 0:00:17.2]} 39... Qc8 {[%clk 0:00:28.5]} 40. Qf7 {[%clk 0:00:16.8]} 40...
Qd7 {[%clk 0:00:15.9]} 41. Qg6+ {[%clk 0:00:16.7]} 41... Kh8 {[%clk 0:00:15.6]}
42. Nf5 {[%clk 0:00:14.2]} 42... Rf8 {[%clk 0:00:15.3]} 43. Rb1 {[%clk
0:00:12.5]} 43... Ng8 {[%clk 0:00:13.6]} 44. Nh4 {[%clk 0:00:10.1]} 44... e3
{[%clk 0:00:13.4]} 45. fxe3 {[%clk 0:00:08.7]} 45... dxe3 {[%clk 0:00:13.6]} 46.
Qe4 {[%clk 0:00:08.2]} 46... Ne7 {[%clk 0:00:12.7]} 47. Qxe7 {[%clk 0:00:07.1]}
47... Qxe7 {[%clk 0:00:09.6]} 48. Ng6+ {[%clk 0:00:07.4]} 48... Kh7 {[%clk
0:00:10.1]} 49. Nxe7 {[%clk 0:00:08.3]} 49... Ra8 {[%clk 0:00:06.3]} 50. Re1
{[%clk 0:00:07.8]} 50... Ra4 {[%clk 0:00:06.3]} 51. Rxe3 {[%clk 0:00:07.1]}
51... Rxc4 {[%clk 0:00:06.6]} 52. Nd5 {[%clk 0:00:07.8]} 52... Rd4 {[%clk
0:00:06.1]} 53. Nf4 {[%clk 0:00:07.9]} 53... c4 {[%clk 0:00:06.3]} 54. Rc3
{[%clk 0:00:07.9]} 54... g5 {[%clk 0:00:06]} 55. Ne2 {[%clk 0:00:07.8]} 55...
Re4 {[%clk 0:00:06.2]} 56. Kf2 {[%clk 0:00:07.6]} 56... Kg6 {[%clk 0:00:06.7]}
57. Kf3 {[%clk 0:00:07.7]} 57... Kf5 {[%clk 0:00:07.2]} 58. g4+ {[%clk 0:00:07]}
58... Ke5 {[%clk 0:00:07.6]} 59. Ng3 {[%clk 0:00:05.8]} 59... Rf4+ {[%clk
0:00:08]} 60. Kg2 {[%clk 0:00:05.8]} 60... Kd4 {[%clk 0:00:06.6]} 61. Ne2+
{[%clk 0:00:05]} 61... Kc5 {[%clk 0:00:05.8]} 62. Nxf4 {[%clk 0:00:04.6]} 62...
gxf4 {[%clk 0:00:06.7]} 63. Kf3 {[%clk 0:00:04.8]} 63... Kd4 {[%clk 0:00:07]}
64. Rc2 {[%clk 0:00:04.4]} 64... Kd3 {[%clk 0:00:07.3]} 65. Rc1 {[%clk
0:00:04.2]} 65... c3 {[%clk 0:00:07.8]} 66. Kxf4 {[%clk 0:00:04.5]} 66... Kd2
{[%clk 0:00:08.4]} 67. Ra1 {[%clk 0:00:04.5]} 67... c2 {[%clk 0:00:08.5]} 68.
Kf5 {[%clk 0:00:04.9]} 68... Ke3 {[%clk 0:00:09]} 69. Kg6 {[%clk 0:00:04.4]}
69... Kf4 {[%clk 0:00:09]} 70. Kh5 {[%clk 0:00:04.8]} 70... Ke3 {[%clk
0:00:08.5]} 71. Rc1 {[%clk 0:00:05.2]} 1-0

[Event "*** SCC Grand Prix: Titled Tuesday Blitz"]
[Site "Chess.com"]
[Date "2020.06.09"]
[Round "3"]
[White "szefru"]
[Black "gm_rashid"]
[Result "0-1"]
[WhiteElo "2135"]
[BlackElo "2359"]
[TimeControl "180+1"]
[EndTime "9:30:31 PDT"]
[Termination "gm_rashid won by checkmate"]

1. b3 {[%clk 0:03:00.9]} 1... e5 {[%clk 0:02:58.9]} 2. Bb2 {[%clk 0:03:00.8]}
2... Nc6 {[%clk 0:02:59.3]} 3. e3 {[%clk 0:03:00.1]} 3... Nf6 {[%clk 0:02:56]}
4. Nf3 {[%clk 0:02:59.1]} 4... Bd6 {[%clk 0:02:54.9]} 5. c4 {[%clk 0:02:58.6]}
5... O-O {[%clk 0:02:54]} 6. Nc3 {[%clk 0:02:58.8]} 6... e4 {[%clk 0:02:50.1]}
7. Ng1 {[%clk 0:02:52.8]} 7... Re8 {[%clk 0:02:49.7]} 8. d4 {[%clk 0:02:52.7]}
8... exd3 {[%clk 0:02:48.5]} 9. Bxd3 {[%clk 0:02:52.3]} 9... Ne5 {[%clk
0:02:46.7]} 10. Nge2 {[%clk 0:02:47.5]} 10... Nxd3+ {[%clk 0:02:45.6]} 11. Qxd3
{[%clk 0:02:47.1]} 11... Be5 {[%clk 0:02:45.7]} 12. O-O-O {[%clk 0:02:37.7]}
12... a5 {[%clk 0:02:39.7]} 13. h3 {[%clk 0:02:32.1]} 13... a4 {[%clk
0:02:36.1]} 14. Nxa4 {[%clk 0:02:26]} 14... Bxb2+ {[%clk 0:02:34.4]} 15. Kxb2
{[%clk 0:02:24.3]} 15... Ne4 {[%clk 0:02:32.4]} 16. Rhf1 {[%clk 0:02:20.3]}
16... Qe7 {[%clk 0:02:18.4]} 17. f3 {[%clk 0:02:10.2]} 17... Nc5 {[%clk
0:02:17.5]} 18. Nxc5 {[%clk 0:02:08.6]} 18... Qxc5 {[%clk 0:02:17.3]} 19. a4
{[%clk 0:01:55]} 19... Rxe3 {[%clk 0:02:14.1]} 20. Qd2 {[%clk 0:01:52.8]} 20...
b5 {[%clk 0:01:42.5]} 21. Nd4 {[%clk 0:01:44.4]} 21... Qe5 {[%clk 0:01:30.2]}
22. Qxe3 {[%clk 0:01:22.8]} 22... Qxe3 {[%clk 0:01:28.2]} 23. Rfe1 {[%clk
0:01:21.1]} 23... Qf2+ {[%clk 0:01:17.8]} 24. Re2 {[%clk 0:01:08]} 24... Qxe2+
{[%clk 0:01:17.1]} 25. Nxe2 {[%clk 0:01:07.8]} 25... bxc4 {[%clk 0:01:16.7]} 26.
Nf4 {[%clk 0:01:00.5]} 26... cxb3 {[%clk 0:01:14]} 27. Kxb3 {[%clk 0:00:57.9]}
27... d6 {[%clk 0:01:12]} 28. Kb4 {[%clk 0:00:54.7]} 28... Rb8+ {[%clk
0:01:05.3]} 29. Ka3 {[%clk 0:00:51.1]} 29... Bd7 {[%clk 0:00:57.6]} 30. Nd5
{[%clk 0:00:46.9]} 30... c6 {[%clk 0:00:44.5]} 31. Nb4 {[%clk 0:00:35.5]} 31...
d5 {[%clk 0:00:38.4]} 32. Rc1 {[%clk 0:00:33]} 32... Kf8 {[%clk 0:00:35.7]} 33.
a5 {[%clk 0:00:25.9]} 33... Rb5 {[%clk 0:00:32.2]} 34. a6 {[%clk 0:00:22.4]}
34... c5 {[%clk 0:00:29.8]} 35. Nxd5 {[%clk 0:00:20.2]} 35... Ra5+ {[%clk
0:00:29.4]} 36. Kb3 {[%clk 0:00:19.9]} 36... Be6 {[%clk 0:00:24]} 37. Kc4 {[%clk
0:00:16]} 37... Rxa6 {[%clk 0:00:23.3]} 38. Kxc5 {[%clk 0:00:15.1]} 38... Ra5+
{[%clk 0:00:22.2]} 39. Kd6 {[%clk 0:00:14.3]} 39... Rxd5+ {[%clk 0:00:21.7]} 40.
Kc6 {[%clk 0:00:14.6]} 40... Rd2 {[%clk 0:00:21.2]} 41. g4 {[%clk 0:00:14.1]}
41... Rd3 {[%clk 0:00:20.5]} 42. f4 {[%clk 0:00:13.1]} 42... g6 {[%clk
0:00:18.1]} 43. h4 {[%clk 0:00:10.4]} 43... Rf3 {[%clk 0:00:17.5]} 44. f5 {[%clk
0:00:08.3]} 44... gxf5 {[%clk 0:00:16.7]} 45. g5 {[%clk 0:00:08.3]} 45... f4
{[%clk 0:00:14.6]} 46. Kd6 {[%clk 0:00:08]} 46... Rh3 {[%clk 0:00:13.1]} 47. Ke5
{[%clk 0:00:07.1]} 47... Kg7 {[%clk 0:00:11.6]} 48. Kxf4 {[%clk 0:00:06]} 48...
Rxh4+ {[%clk 0:00:11.2]} 49. Ke5 {[%clk 0:00:06.9]} 49... Rg4 {[%clk 0:00:10.6]}
50. Rh1 {[%clk 0:00:04.2]} 50... Rxg5+ {[%clk 0:00:10.2]} 51. Kf4 {[%clk
0:00:05.1]} 51... Rg4+ {[%clk 0:00:09.5]} 52. Kf3 {[%clk 0:00:04.7]} 52... Kg6
{[%clk 0:00:09.5]} 53. Rg1 {[%clk 0:00:04.1]} 53... h5 {[%clk 0:00:09]} 54. Re1
{[%clk 0:00:03.3]} 54... h4 {[%clk 0:00:07.7]} 55. Rh1 {[%clk 0:00:04.2]} 55...
Bd5+ {[%clk 0:00:06.1]} 56. Kxg4 {[%clk 0:00:03.7]} 56... Bxh1 {[%clk
0:00:06.8]} 57. Kxh4 {[%clk 0:00:04.6]} 57... Kf5 {[%clk 0:00:06.3]} 58. Kg3
{[%clk 0:00:05.5]} 58... Ke4 {[%clk 0:00:06.3]} 59. Kf2 {[%clk 0:00:06.4]} 59...
f5 {[%clk 0:00:06.3]} 60. Kg1 {[%clk 0:00:07.3]} 60... Ke3 {[%clk 0:00:06.5]}
61. Kxh1 {[%clk 0:00:07.2]} 61... Ke2 {[%clk 0:00:06.9]} 62. Kg1 {[%clk
0:00:08.1]} 62... f4 {[%clk 0:00:07.2]} 63. Kg2 {[%clk 0:00:09]} 63... f3+
{[%clk 0:00:07.5]} 64. Kh3 {[%clk 0:00:09.9]} 64... f2 {[%clk 0:00:07.3]} 65.
Kg4 {[%clk 0:00:10.8]} 65... f1=Q {[%clk 0:00:07.4]} 66. Kg3 {[%clk 0:00:11.7]}
66... Qf5 {[%clk 0:00:06.9]} 67. Kh2 {[%clk 0:00:10.9]} 67... Qg6 {[%clk
0:00:07.1]} 68. Kh1 {[%clk 0:00:10.9]} 68... Kf3 {[%clk 0:00:07.4]} 69. Kh2
{[%clk 0:00:11.8]} 69... Qg2# {[%clk 0:00:07.6]} 0-1